Cogmind - Beta 15 @@@ ROGUE MODE // 2025.09.03 @ 02:14:03 // Winter2019/RPGLIKE Player: Toaster Result: Escaped! Performance ------------- Evolutions (9) 4500 Regions Visited (14) 2800 Robots Destroyed (287) 1435 Value Destroyed (15139) 15139 Prototype IDs (28) 560 Alien Tech Used (2) 400 Bonus (5875) 5875 TOTAL SCORE: 30709 Bonus ------- High Alert Combat Kills 2059 Follower Combat Kills 216 Registered with UFD 300 Met Zhirov 300 Win 3000 Cogmind --------- Core Integrity 1375/2000 Matter 280/300 Energy 725/735 System Corruption 0% Temperature Cool (5) Movement Walking (123) Location To Epsilon Eridani Parts ------- > --- POWER (3) -------- Fission Core Fission Core Neutrino Core > --- PROPULSION (4) --- Cargo Legs Improved Thunder Leg Improved Thunder Leg > --- UTILITY (8+1) ---- Advanced Cooling System Advanced Signal Interpreter Improved Transmission Jammer Heavy Insulated Plating EM Shield Improved Hardlight Generator Advanced Hacking Suite Makeshift System Restoration Module (+) > --- WEAPON (4) ------- Nova Cannon Enhanced Nova Cannon Enhanced Nova Cannon Enhanced Nova Cannon > --- INVENTORY (1) ---- Improved Particle Charger Peak State ------------ > --- POWER ------------ Fission Core Fission Core Neutrino Core > --- PROPULSION ------- Cargo Legs Improved Thunder Leg Improved Thunder Leg > --- UTILITY ---------- Advanced Cryofiber Web Advanced Signal Interpreter Improved Transmission Jammer Layered Heavy Armor Plating EM Shield Improved Hardlight Generator Advanced Hacking Suite Makeshift System Restoration Module > --- WEAPON ----------- Nova Cannon Enhanced Nova Cannon Enhanced Nova Cannon Enhanced Nova Cannon > --- INVENTORY -------- Improved Particle Charger [Rating: 133] Favorites ----------- Power Fission Core Engine Improved Ion Engine Power Core Fission Core Reactor Light Antimatter Reactor Propulsion Cargo Legs Leg Cargo Legs Hover Unit Cooled Gravmag System Utility Makeshift System Restoration Module Device Makeshift System Restoration Module Storage Large Battery Processor Advanced Signal Interpreter Hackware Advanced Hacking Suite Protection Layered Heavy Armor Plating Weapon Heavy Phase Cannon Energy Gun Gatling Laser Energy Cannon Heavy Phase Cannon Ballistic Cannon Linear Accelerator Build | -11 -10 -10 -7 -7 -5 -4 -4 -4 -4 -3 -3 -3 -2 -1 ------- Run | Yrd Mat Sub Rec Scr Fac Fac Upp Upp Zhi Pro Res Qua Res Acc Slots Evolved 15 | 2 1 . 3 1 4 . 2 1 . . . . . 1 Power 2 | . . . 1 . 1 . . . . . . . . . Propulsion 3 | 1 . . . 1 1 . . . . . . . . . Utility 7 | . . . 2 . 1 . 2 1 . . . . . 1 Weapon 3 | 1 1 . . . 1 . . . . . . . . . Parts Attached 71 | 5 7 3 13 3 12 2 3 7 3 . 3 2 1 7 Power 8 | 1 1 . 2 1 . 1 . 2 . . . . . . Engine 4 | 1 1 . 2 . . . . . . . . . . . Core 3 | . . . . 1 . . . 2 . . . . . . Reactor 1 | . . . . . . 1 . . . . . . . . Propulsion 12 | 2 1 1 . 1 2 1 . 1 1 . 2 . . . Treads . | . . . . . . . . . . . . . . . Leg 11 | 2 1 1 . 1 2 1 . 1 . . 2 . . . Wheel . | . . . . . . . . . . . . . . . Hover 1 | . . . . . . . . . 1 . . . . . Flight . | . . . . . . . . . . . . . . . Utility 27 | . 2 1 7 1 3 . 3 4 2 . . . . 4 Device 13 | . . 1 1 1 1 . 3 3 . . . . . 3 Storage 1 | . 1 . . . . . . . . . . . . . Processor 1 | . . . . . . . . 1 . . . . . . Hackware 3 | . . . 2 . . . . . 1 . . . . . Protection 9 | . 1 . 4 . 2 . . . 1 . . . . 1 Artifact . | . . . . . . . . . . . . . . . Weapon 24 | 2 3 1 4 . 7 . . . . . 1 2 1 3 Energy Gun 6 | 2 . . 2 . 2 . . . . . . . . . Energy Cannon 17 | . 3 1 2 . 5 . . . . . . 2 1 3 Ballistic Gun . | . . . . . . . . . . . . . . . Ballistic Cannon 1 | . . . . . . . . . . . 1 . . . Launcher . | . . . . . . . . . . . . . . . Special Weapon . | . . . . . . . . . . . . . . . Impact Weapon . | . . . . . . . . . . . . . . . Slashing Weapon . | . . . . . . . . . . . . . . . Piercing Weapon . | . . . . . . . . . . . . . . . Special Melee Weapon . | . . . . . . . . . . . . . . . Unidentified Prototypes 6 | . 1 . . . 1 . . 1 3 . . . . . Parts Lost . | . . . . . . . . . . . . . . . Power . | . . . . . . . . . . . . . . . Propulsion . | . . . . . . . . . . . . . . . Utility . | . . . . . . . . . . . . . . . Weapon . | . . . . . . . . . . . . . . . Highest Loss Streak . | . . . . . . . . . . . . . . . To Critical Strikes . | . . . . . . . . . . . . . . . Average Backups . | . . . 1 . . 1 . . . . . . . 1 Power . | . . . . . . . . . . . . . . . Propulsion . | . . . . . . . . . . . . . . . Utility . | . . . . . . 1 . . . . . . . 1 Weapon . | . . . . . . . . . . . . . . . Tool/Special . | . . . . . . . . . . . . . . . Unused Backups 4 | . 1 2 . . 1 . . . . . . . . . Power 1 | . . 1 . . . . . . . . . . . . Propulsion 1 | . . 1 . . . . . . . . . . . . Utility 2 | . 1 . . . 1 . . . . . . . . . Weapon . | . . . . . . . . . . . . . . . Tool/Special . | . . . . . . . . . . . . . . . Average Slot Usage (%) 87 | . 90 77 87 90 88 84 87 88 88 89 89 89 89 89 Engine 6 | . 15 11 16 10 6 6 5 1 . . . . . . Core 7 | . . . . 4 6 6 5 8 15 15 15 15 15 15 Leg 15 | . 32 14 8 10 14 17 16 15 15 15 15 15 15 15 Device 18 | . . 4 16 23 22 18 25 26 23 21 21 21 21 24 Processor 1 | . . . . . . . . 4 5 5 5 5 5 5 Hackware 2 | . . . 8 . . . . . 1 5 5 5 5 5 Protection 8 | . 6 11 10 15 12 6 5 5 5 5 5 5 5 5 Energy Gun 3 | . 16 . 6 15 4 . . . . . . . . . Energy Cannon 20 | . 17 35 19 7 18 25 22 21 21 21 15 15 17 20 Peak Build Rating 133 | 5 13 30 52 57 81 88 104 112 115 114 119 123 125 133 Average Rating 76 | 3 7 24 44 53 66 84 100 108 111 114 118 122 123 129 On Entrance 75 | . 5 13 30 51 57 80 88 104 111 114 114 119 123 123 Naked Turns . | . . . . . . . . . . . . . . . Heaviest Build 121 | 9 20 29 63 68 86 96 107 110 110 107 110 115 117 121 Greatest Support 121 | 20 20 55 65 85 108 111 111 113 113 113 121 121 121 121 Greatest Overweight (x) 6 | . . 6 . . 1 1 . . 1 . 1 1 . . Average Overweight (x) . | . . . . . . . . . . . . . . . Largest Inventory Capacity 1 | 1 1 1 1 1 1 1 1 1 1 1 1 1 1 1 Average Capacity . | . 1 1 1 1 1 1 1 1 1 1 1 1 1 1 Most Carried 1 | . 1 1 1 1 1 1 1 1 1 . 1 1 1 1 Average Carried . | . . . . . . 1 . . . . . . . 1 Final Capacity 1 | 1 1 1 1 1 1 1 1 1 1 1 1 1 1 1 Final Carried 1 | . 1 1 1 . 1 1 . 1 . . 1 1 1 1 Class Distribution -------------------- 36% | Hacker-Gunner 28% | Wizard-Tank 15% | Gunner 14% | Hacker-Tank 5% | Mutant Dominant Class ---------------- Mutant | -10/Materials Gunner | -10/Subcaves Hacker-Gunner | -7/Recycling Hacker-Gunner | -7/Scraptown Hacker-Gunner | -5/Factory Hacker-Gunner | -4/Factory Hacker-Tank | -4/Upper Caves Hacker-Tank | -4/Upper Caves Hacker-Tank | -4/Zhirov Wizard-Tank | -3/Proximity Caves Wizard-Tank | -3/Research Wizard-Tank | -3/Quarantine Wizard-Tank | -2/Research Wizard-Tank | -1/Access Resources | -11 -10 -10 -7 -7 -5 -4 -4 -4 -4 -3 -3 -3 -2 -1 ----------- Run | Yrd Mat Sub Rec Scr Fac Fac Upp Upp Zhi Pro Res Qua Res Acc Matter Collected 1707 | 208 126 40 113 30 175 20 40 130 . 70 190 253 164 148 Remotely . | . . . . . . . . . . . . . . . Salvage Created 14580 | . 743 767 1146 . 4460 937 303 1052 . 1056 510 960 1128 1518 Parts 659 | . 42 50 41 . 184 27 22 34 . 35 33 47 35 109 Haulers Intercepted 1 | . 1 . . . . . . . . . . . . . Recyclers Shooed 3 | . . . 1 . 2 . . . . . . . . . Parts Field Recycled . | . . . . . . . . . . . . . . . Retrieved Matter . | . . . . . . . . . . . . . . . Parts Self-Destructed 106 | . . 7 . . . . 26 38 . 35 . . . . Prevented 3 | . . . . . . . . 3 . . . . . . Kills | -11 -10 -10 -7 -7 -5 -4 -4 -4 -4 -3 -3 -3 -2 -1 ------- Run | Yrd Mat Sub Rec Scr Fac Fac Upp Upp Zhi Pro Res Qua Res Acc Combat Hostiles Destroyed 249 | . 13 18 18 . 78 14 10 19 . 14 12 14 13 26 Guns 22 | . 7 . 8 . 7 . . . . . . . . . Cannons 185 | . 3 18 9 . 51 10 10 16 . 12 11 13 11 21 AOE 3 | . 1 . . . 2 . . . . . . . . . Classes Destroyed 19 | . 6 3 7 . 2 1 . . . . . . . . Worker 4 | . . . 1 . 2 . . . . . . . . 1 Builder 7 | . . . 2 . 4 . . . . . . . 1 . Tunneler 2 | . 1 . . . 1 . . . . . . . . . Hauler 1 | . 1 . . . . . . . . . . . . . Recycler 4 | . . . . . 2 1 . . . . . 1 . . Operator 5 | . 2 . . . . 1 . . . . . 1 . 1 Turret 2 | . . 2 . . . . . . . . . . . . Watcher 13 | . 3 . . . 4 1 . . . . . 2 2 1 Swarmer 54 | . 3 4 . . 12 . 8 6 . 5 5 5 . 6 Grunt 51 | . 10 . 6 . 17 2 1 9 . 2 . . 3 1 Brawler 10 | . . . 2 . 5 . . . . 2 1 . . . Duelist 3 | . . . 1 . . . . . . 1 . . 1 . Protector 2 | . . . 2 . . . . . . . . . . . Sentry 34 | . . . 4 . 11 2 1 3 . 2 3 . 3 5 Hunter 19 | . . . 3 . 10 4 . . . . . 2 . . Programmer 56 | . . . . . 23 5 . . . 1 3 7 5 12 Behemoth 6 | . . . . . . 1 . 1 . 1 . . 1 2 Artisan 1 | . . 1 . . . . . . . . . . . . Subdweller 14 | . . 14 . . . . . . . . . . . . Best Kill Streak 12 | . 7 6 5 . 12 5 5 8 . 6 5 4 5 5 Combat Bots Only 11 | . 6 4 5 . 11 4 5 8 . 6 5 4 5 5 Max Kills in Single Turn 5 | . 2 1 3 . 5 2 1 1 . 1 2 2 2 2 Gunslinging . | . . . . . . . . . . . . . . . Exploded 2 | . 1 . . . 2 . . . . . . . . . Melee . | . . . . . . . . . . . . . . . Uniques/NPCs Destroyed . | . . . . . . . . . . . . . . . Combat | -11 -10 -10 -7 -7 -5 -4 -4 -4 -4 -3 -3 -3 -2 -1 -------- Run | Yrd Mat Sub Rec Scr Fac Fac Upp Upp Zhi Pro Res Qua Res Acc Hostile Shots Fired 1061 | . 72 58 36 . 369 56 51 90 . 56 37 61 104 71 Missed 418 | . 23 21 22 . 146 27 19 38 . 20 13 25 32 32 Hits 643 | . 49 37 14 . 223 29 32 52 . 36 24 36 72 39 Melee 6 | . . . . . . . . . . 2 1 . 3 . Projectile 637 | . 49 37 14 . 223 29 32 52 . 34 23 36 69 39 AOE 2 | . . . . . . 1 . . . . . . . 1 Critical Strikes 24 | . . 1 . . 9 1 . . . 2 1 3 4 3 Part Disruptions 4 | . . . . . 1 . . . . . . 3 . . Damage Taken 10511 | . 541 546 113 . 3696 602 269 665 . 567 383 641 1582 906 Core 6989 | . 434 412 69 . 2402 416 159 392 . 388 226 424 1085 582 Absorbed by Shields 1404 | . . . . . . . 114 306 . 186 132 90 354 222 Redirected to Core 6157 | . 345 329 69 . 2122 372 159 392 . 335 201 356 959 518 Ignored by Resistances 1558 | . . . . . 569 64 102 65 . 104 89 66 186 313 Core Remaining (%) 79 | 100 . . . 100 88 . . . . 100 . 75 25 68 Volleys Fired 518 | . 46 71 27 . 148 23 13 34 . 25 22 28 31 50 Largest 4 | . 3 3 3 . 4 4 4 4 . 4 4 4 4 4 Hottest 473 | . 204 216 240 . 385 376 376 376 . 376 332 370 429 473 Shots Fired 1683 | . 92 185 79 . 483 92 52 130 . 101 70 96 124 179 Gun 191 | . 74 . 36 . 81 . . . . . . . . . Cannon 1492 | . 18 185 43 . 402 92 52 130 . 101 70 96 124 179 Launcher . | . . . . . . . . . . . . . . . Special . | . . . . . . . . . . . . . . . Kinetic 64 | . . . . . . . . . . . 21 25 18 . Thermal 1545 | . 18 185 79 . 483 92 52 130 . 101 49 71 106 179 Explosive . | . . . . . . . . . . . . . . . Electromagnetic 74 | . 74 . . . . . . . . . . . . . Robot Hit Streak 36 | . 12 36 24 . 20 34 6 19 . 24 20 8 22 33 Robot Miss Streak 5 | . 3 3 2 . 5 2 2 3 . 2 2 1 2 1 Penetration Max . | . . . . . . . . . . . . . . . Secondary Targets 3 | . 3 . . . . . . . . . . . . . Max Gunslinging Chain 1 | . 1 . . . . . . . . . . . . . Shots Hit Robots 1065 | . 59 89 55 . 320 63 26 85 . 61 45 54 92 116 Core Hits 469 | . 26 33 60 . 140 21 13 32 . 28 21 21 30 44 Critical Kills 24 | . . 1 . . 7 4 . 1 . 2 1 3 2 3 Critical Parts Destroyed . | . . . . . . . . . . . . . . . Critical Strikes 30 | . 2 1 . . 7 4 . 1 . 2 1 6 3 3 Meltdown 24 | . . 1 . . 7 4 . 1 . 2 1 3 2 3 Blast 4 | . . . . . . . . . . . . 3 1 . Corrupt 2 | . 2 . . . . . . . . . . . . . Melee Attacks . | . . . . . . . . . . . . . . . Impact . | . . . . . . . . . . . . . . . Slashing . | . . . . . . . . . . . . . . . Piercing . | . . . . . . . . . . . . . . . Sneak Attacks . | . . . . . . . . . . . . . . . Combat Hostiles . | . . . . . . . . . . . . . . . Follow-up Attacks . | . . . . . . . . . . . . . . . Damage Inflicted 40861 | . 1100 1780 1891 . 12653 2579 1267 3358 . 2219 1869 2586 4050 5509 Guns 3934 | . 722 . 1014 . 2198 . . . . . . . . . Cannons 35925 | . 206 1780 799 . 9882 2579 1267 3358 . 2219 1869 2580 3877 5509 Explosions 851 | . 134 . . . 544 . . . . . . . 173 . Melee . | . . . . . . . . . . . . . . . Ramming 151 | . 38 . 78 . 29 . . . . . . 6 . . Kinetic 1558 | . . . . . . . . . . . 573 574 411 . Thermal 38201 | . 340 1780 1813 . 12568 2579 1267 3358 . 2219 1296 2006 3466 5509 Explosive 222 | . . . . . 49 . . . . . . . 173 . Electromagnetic 729 | . 722 . . . 7 . . . . . . . . . Impact . | . . . . . . . . . . . . . . . Slashing . | . . . . . . . . . . . . . . . Piercing . | . . . . . . . . . . . . . . . Highest Corruption 3 | . . . . . 3 . . . . 2 . 3 1 2 Average Corruption 1 | . . . . . 1 . . . . 1 . 1 1 1 Corruption Purged 19 | . . . . . 9 . . . . 2 . 5 1 2 Corruption Blocked . | . . . . . . . . . . . . . . . Effects 16 | . . . . . 8 . . . . 4 . 3 . 1 Message Errors 5 | . . . . . 4 . . . . 1 . . . . Matter Fused 3 | . . . . . 1 . . . . . . 1 . 1 Heat Flow Errors 2 | . . . . . . . . . . 1 . 1 . . Energy Discharges 2 | . . . . . 1 . . . . 1 . . . . Data Loss (minor) 1 | . . . . . . . . . . . . 1 . . Data Loss (major) 1 | . . . . . 1 . . . . . . . . . Misfires 1 | . . . . . . . . . . 1 . . . . Weapon Failures 1 | . . . . . 1 . . . . . . . . . Overload Shots 16 | . . . . . 16 . . . . . . . . . Effects 1 | . . . . . 1 . . . . . . . . . Heat Surge 1 | . . . . . 1 . . . . . . . . . Overflow Damage 1476 | . . 19 14 . 387 123 110 49 . 67 . 116 264 327 Projectiles 1337 | . . 19 14 . 331 123 110 49 . 67 . 116 181 327 Explosions 139 | . . . . . 56 . . . . . . . 83 . Melee . | . . . . . . . . . . . . . . . Knockbacks 11 | . . . . . . . . . . . . 7 4 . Impact . | . . . . . . . . . . . . . . . Kinetic 10 | . . . . . . . . . . . . 7 3 . Secondary 1 | . . . . . . . . . . . . . 1 . Self-Inflicted Damage 267 | . . . . . 227 . . . . . . . 40 . Shots 5 | . . . . . 4 . . . . . . . 1 . Rammed . | . . . . . . . . . . . . . . . Targets Rammed 37 | . 20 . 13 . 3 . . . . . . 1 . . Kicked 37 | . 20 . 13 . 3 . . . . . . 1 . . Crushed . | . . . . . . . . . . . . . . . Highest Temperature 380 | . 276 . 150 . 340 246 260 339 . 99 . . 265 380 Average Temperature 88 | . 88 . 58 . 79 87 107 112 . 47 . . 118 116 Received Heat Transfer 1661 | . 249 84 42 . 423 72 5 152 . 76 28 . 485 45 Effects 3 | . 2 . . . . . . . . . . . . 1 Shutdowns 1 | . . . . . . . . . . . . . . 1 Interference 2 | . 2 . . . . . . . . . . . . . Siege Activations . | . . . . . . . . . . . . . . . Martial Activations . | . . . . . . . . . . . . . . . Shielding Activations . | . . . . . . . . . . . . . . . Robots Disrupted . | . . . . . . . . . . . . . . . Combat Hostiles . | . . . . . . . . . . . . . . . Robots Corrupted 3 | . 2 . 1 . . . . . . . . . . . Combat Hostiles 2 | . 2 . . . . . . . . . . . . . Parts Fried 3 | . 2 . 1 . . . . . . . . . . . Impact Corruptions 1 | . . . 1 . . . . . . . . . . . Robots Melted 41 | . . 1 . . 19 4 . 3 . 2 1 3 3 5 Combat Hostiles 36 | . . . . . 18 4 . 3 . 2 1 1 2 5 Parts Melted 178 | . 1 6 4 . 68 19 3 17 . 9 8 5 16 22 Heat Transferred 45127 | . 520 3145 3408 . 16230 2797 1455 3895 . 2925 1525 1813 3108 4306 Parts Sabotaged . | . . . . . . . . . . . . . . . Parts Stolen . | . . . . . . . . . . . . . . . Parts Stripped . | . . . . . . . . . . . . . . . Power Chain Reactions 2 | . 2 . . . . . . . . . . . . . Alert | -11 -10 -10 -7 -7 -5 -4 -4 -4 -4 -3 -3 -3 -2 -1 ------- Run | Yrd Mat Sub Rec Scr Fac Fac Upp Upp Zhi Pro Res Qua Res Acc Maximum Alert Level 5 | . . . 1 . 5 4 . . . . . . 1 1 Low Security (%) 68 | 100 100 . 84 . 29 . . . . . 100 100 64 87 Level 1 12 | . . . 15 . 21 . . . . . . . 35 12 Level 2 6 | . . . . . 22 . . . . . . . . . Level 3 6 | . . . . . 11 75 . . . . . . . . Level 4 4 | . . . . . 13 24 . . . . . . . . Level 5 . | . . . . . 2 . . . . . . . . . High Security . | . . . . . . . . . . . . . . . Max Security . | . . . . . . . . . . . . . . . Peak Influence 1986 | . 135 . 275 . 1986 1167 . . . . 127 103 318 325 Initial 972 | . . . 20 . . 972 . . . . 44 . 17 28 Average 237 | . 43 . 60 . 525 1063 . . . . 42 25 104 96 Influence Increases 7799 | . 455 195 523 . 2788 409 230 415 . 324 351 455 563 1091 Destroy 0b10 Robot/C 4780 | . 260 120 320 . 1560 280 200 380 . 280 240 280 260 600 Destroy 0b10 Robot/NC 240 | . 35 . 50 . 65 15 10 . . 10 . 20 15 20 Destroy Leader 920 | . 78 . . . 358 82 20 20 . 30 60 54 84 134 Allied During Kill 116 | . . . . . . . . . . 4 . . . 112 Successful Hack 95 | . 11 . 26 . . 10 . . . . 6 15 21 6 Select Force Hacks 180 | . 60 . 120 . . . . . . . . . . . Disable Machine 465 | . . . . . 360 . . . . . . 30 30 45 Destroy Structure 793 | . 11 . 7 . 340 22 . . . . 30 56 153 174 Lose Combat Pursuer 210 | . . 75 . . 105 . . 15 . . 15 . . . Influence Decreases 7474 | . 372 235 322 244 803 1267 904 627 241 258 417 424 546 814 Entered New Map 2123 | . . 41 23 244 . 1013 418 87 241 . 22 . 14 20 Time Decay 4114 | . 372 194 299 . 503 254 486 540 . 238 325 265 240 398 Lost Ally 100 | . . . . . . . . . . 20 . . . 80 Purge Threat 1137 | . . . . . 300 . . . . . 70 159 292 316 Squads Dispatched 47 | . 4 . . . 26 3 . . . . 1 4 2 7 Investigation 8 | . 3 . . . 3 1 . . . . . . . 1 Extermination 21 | . . . . . 9 1 . . . . 1 3 2 5 Reinforcement 6 | . 1 . . . 3 . . . . . . 1 . 1 Assault 3 | . . . . . 2 1 . . . . . . . . Garrison 9 | . . . . . 9 . . . . . . . . . Intercept . | . . . . . . . . . . . . . . . Searches Triggered . | . . . . . . . . . . . . . . . Construction Impeded . | . . . . . . . . . . . . . . . Haulers Reinforced . | . . . . . . . . . . . . . . . Active Scanning Responses . | . . . . . . . . . . . . . . . Cargo Convoy Interrupts . | . . . . . . . . . . . . . . . Stealth | -11 -10 -10 -7 -7 -5 -4 -4 -4 -4 -3 -3 -3 -2 -1 --------- Run | Yrd Mat Sub Rec Scr Fac Fac Upp Upp Zhi Pro Res Qua Res Acc Distress Signals 8 | . . . 1 . 4 . . . . . . . 2 1 Communications Jammed 53 | . . . . . . . . . . . . 3 . 50 Distress Signals 53 | . . . . . . . . . . . . 3 . 50 Times Spotted 288 | . 20 19 6 . 98 14 11 19 . 14 14 18 23 32 Peak Tracking Total 8 | . 5 4 2 . 8 2 5 4 . 5 5 2 7 4 Tactical Retreats 8 | . . 2 . . 4 . . 1 . . 1 . . . Traps | -11 -10 -10 -7 -7 -5 -4 -4 -4 -4 -3 -3 -3 -2 -1 ------- Run | Yrd Mat Sub Rec Scr Fac Fac Upp Upp Zhi Pro Res Qua Res Acc Traps Triggered 15 | . 2 . . . 7 . . . . . . 2 1 3 Indirectly . | . . . . . . . . . . . . . . . Trap Hack Attempts . | . . . . . . . . . . . . . . . Triggered . | . . . . . . . . . . . . . . . Disarmed . | . . . . . . . . . . . . . . . Reprogrammed . | . . . . . . . . . . . . . . . Reused . | . . . . . . . . . . . . . . . Traps Extracted . | . . . . . . . . . . . . . . . Installed . | . . . . . . . . . . . . . . . Triggered . | . . . . . . . . . . . . . . . Machines | -11 -10 -10 -7 -7 -5 -4 -4 -4 -4 -3 -3 -3 -2 -1 ---------- Run | Yrd Mat Sub Rec Scr Fac Fac Upp Upp Zhi Pro Res Qua Res Acc Machines Disabled 36 | . . 3 . . 24 . . 1 . 1 . 2 2 3 Max in Single Turn 8 | . . 1 . . 8 . . 1 . 1 . 1 1 1 Machines Repaired . | . . . . . . . . . . . . . . . Machines Dismantled . | . . . . . . . . . . . . . . . Machines Sabotaged . | . . . . . . . . . . . . . . . Overloaded Fab Kills . | . . . . . . . . . . . . . . . Hacking | -11 -10 -10 -7 -7 -5 -4 -4 -4 -4 -3 -3 -3 -2 -1 --------- Run | Yrd Mat Sub Rec Scr Fac Fac Upp Upp Zhi Pro Res Qua Res Acc Machines Accessed 58 | . 9 1 11 . 10 3 . 2 4 . 3 8 3 4 Terminals 41 | . 7 . 6 . 8 2 . 1 . . 3 8 3 3 Fabricators . | . . . . . . . . . . . . . . . Repair Stations . | . . . . . . . . . . . . . . . Recycling Units 11 | . 2 . 5 . 2 1 . . . . . . . 1 Scanalyzers . | . . . . . . . . . . . . . . . Garrison Access . | . . . . . . . . . . . . . . . Total Hacks 145 | . 17 4 20 . 18 4 . 7 17 . 7 31 8 12 Successful 121 | . 11 4 16 . 11 4 . 7 17 . 6 28 7 10 Failed 24 | . 6 . 4 . 7 . . . . . 1 3 1 2 Catastrophic 1 | . . . . . 1 . . . . . . . . . Database Lockouts . | . . . . . . . . . . . . . . . Manual 59 | . 15 . 11 . 12 3 . . . . 2 9 3 4 Terminals 103 | . 14 . 7 . 16 3 . 6 . . 7 31 8 11 Fabricators . | . . . . . . . . . . . . . . . Repair Stations . | . . . . . . . . . . . . . . . Recycling Units 20 | . 3 . 13 . 2 1 . . . . . . . 1 Scanalyzers . | . . . . . . . . . . . . . . . Garrison Access . | . . . . . . . . . . . . . . . Terminal Hacks 71 | . 2 4 . . 4 1 . 7 17 . 4 21 5 6 Record 26 | . . 3 . . . . . 7 5 . . 10 1 . Part Schematic 4 | . . . . . . . . . 4 . . . . . Robot Analysis 6 | . . . . . . . . . 4 . . 2 . . Prototype ID Bank 5 | . . . . . . . . . 4 . . 1 . . Open Door 1 | . . . . . . . . . . . 1 . . . Level Access Points 2 | . . . . . . . . . . . . 1 1 . Branch Access Points 2 | . . . . . . . . . . . . 1 . 1 Alert Level 3 | . . . . . 1 . . . . . 1 1 . . Unreport Threat 12 | . . . . . 2 . . . . . 1 3 3 3 Locate Traps 8 | . 2 . . . . 1 . . . . 1 2 . 2 Recall Investigation 1 | . . . . . 1 . . . . . . . . . Proto ID Catalog 1 | . . 1 . . . . . . . . . . . . Fabricator Hacks . | . . . . . . . . . . . . . . . Repair Station Hacks . | . . . . . . . . . . . . . . . Recycling Unit Hacks 6 | . . . 6 . . . . . . . . . . . Report Inventory 5 | . . . 5 . . . . . . . . . . . Retrieve Components 1 | . . . 1 . . . . . . . . . . . Scanalyzer . | . . . . . . . . . . . . . . . Garrison Access Hacks . | . . . . . . . . . . . . . . . Unauthorized Hacks 44 | . 9 . 10 . 7 3 . . . . 2 7 2 4 Terminals 34 | . 7 . 6 . 5 2 . . . . 2 7 2 3 Botnet 34 | . 7 . 6 . 5 2 . . . . 2 7 2 3 Fabricators . | . . . . . . . . . . . . . . . Repair Stations . | . . . . . . . . . . . . . . . Recycling Units 10 | . 2 . 4 . 2 1 . . . . . . . 1 Tunnel 6 | . 2 . 4 . . . . . . . . . . . Fedlink 3 | . . . . . 2 1 . . . . . . . . Scrapoids 1 | . . . . . . . . . . . . . . 1 Scanalyzers . | . . . . . . . . . . . . . . . Garrison Access . | . . . . . . . . . . . . . . . Data Cores Recovered 4 | . 2 . . . . 1 . . . . . . . 1 Used 3 | . 2 . . . . . . . . . . . . 1 Hacking Detections 28 | . 4 . 6 . 5 1 . 1 . . 1 5 3 2 Full Trace Events 2 | . 1 . 1 . . . . . . . . . . . Feedback Events . | . . . . . . . . . . . . . . . Feedback Blocked . | . . . . . . . . . . . . . . . Robot Schematics Acquired . | . . . . . . . . . . . . . . . Robots Built . | . . . . . . . . . . . . . . . Authchips . | . . . . . . . . . . . . . . . Time . | . . . . . . . . . . . . . . . Total Robot Build Rating . | . . . . . . . . . . . . . . . Part Schematics Acquired 4 | . . . . . . . . . 4 . . . . . Parts Built . | . . . . . . . . . . . . . . . Authchips . | . . . . . . . . . . . . . . . Time . | . . . . . . . . . . . . . . . Total Part Build Rating . | . . . . . . . . . . . . . . . Parts Repaired . | . . . . . . . . . . . . . . . Time . | . . . . . . . . . . . . . . . Parts Recycled . | . . . . . . . . . . . . . . . Recycled Matter . | . . . . . . . . . . . . . . . Retrieved Matter . | . . . . . . . . . . . . . . . Retrieved Components 7 | . . . 7 . . . . . . . . . . . Parts Scanalyzed . | . . . . . . . . . . . . . . . Part Schematics Acquired . | . . . . . . . . . . . . . . . Parts Damaged . | . . . . . . . . . . . . . . . Bothacking | -11 -10 -10 -7 -7 -5 -4 -4 -4 -4 -3 -3 -3 -2 -1 ------------ Run | Yrd Mat Sub Rec Scr Fac Fac Upp Upp Zhi Pro Res Qua Res Acc Used RIF Installer . | . . . . . . . . . . . . . . . Robots Hacked . | . . . . . . . . . . . . . . . Non-combat . | . . . . . . . . . . . . . . . Combat . | . . . . . . . . . . . . . . . Robot Hacks Applied . | . . . . . . . . . . . . . . . Relay Couplers Released 2 | . . . . . 2 . . . . . . . . . Programmers 2 | . . . . . 2 . . . . . . . . . Fabnet Peak Effective % . | . . . . . . . . . . . . . . . Robots Rewired 2 | . . . . . . . . . . 2 . . . . Allies Hacked . | . . . . . . . . . . . . . . . Hacks Repelled . | . . . . . . . . . . . . . . . Allies | -11 -10 -10 -7 -7 -5 -4 -4 -4 -4 -3 -3 -3 -2 -1 -------- Run | Yrd Mat Sub Rec Scr Fac Fac Upp Upp Zhi Pro Res Qua Res Acc Total Allies 7 | . . . . . . . . . . 2 . . . 5 Largest Group 5 | . . . . . . . . . . 1 1 . . 5 Highest-Rated Group 326 | . . . . . . . . . . 47 42 . . 326 Highest-Rated Ally 67 | . . . . . . . . . . 47 42 . . 67 Total Orders . | . . . . . . . . . . . . . . . Ally Attacks 64 | . . . . . . . . . . 3 . . . 61 Total Damage 1646 | . . . . . . . . . . 75 . . . 1571 Kills 5 | . . . . . . . . . . . . . . 5 Allies Corrupted . | . . . . . . . . . . . . . . . Allies Melted . | . . . . . . . . . . . . . . . Intel | -11 -10 -10 -7 -7 -5 -4 -4 -4 -4 -3 -3 -3 -2 -1 ------- Run | Yrd Mat Sub Rec Scr Fac Fac Upp Upp Zhi Pro Res Qua Res Acc Active Infowar (turns) 7088 | . . . . . . . . 589 234 1623 852 1492 808 1490 Jamming 7088 | . . . . . . . . 589 234 1623 852 1492 808 1490 Robot Analysis Total 6 | . . . . . . . . . 4 . . 2 . . Derelict Logs Recovered 3 | . . 1 . . . . 1 1 . . . . . . Drone Launches . | . . . . . . . . . . . . . . . Drone Recoveries . | . . . . . . . . . . . . . . . Exploration | -11 -10 -10 -7 -7 -5 -4 -4 -4 -4 -3 -3 -3 -2 -1 ------------- Run | Yrd Mat Sub Rec Scr Fac Fac Upp Upp Zhi Pro Res Qua Res Acc Turns Passed 22470 | 58 1327 3219 2090 1515 3438 542 1273 2509 234 1623 852 1492 808 1490 Spaces Moved 15364 | 45 845 2251 1435 1154 2081 333 973 1872 179 1180 606 963 527 920 Core 6 | 4 . 2 . . . . . . . . . . . . Treads . | . . . . . . . . . . . . . . . Legs 15358 | 41 845 2249 1435 1154 2081 333 973 1872 179 1180 606 963 527 920 Wheels . | . . . . . . . . . . . . . . . Hover . | . . . . . . . . . . . . . . . Flight . | . . . . . . . . . . . . . . . Fastest Speed 50 | 50 120 120 130 130 123 123 123 123 123 123 123 123 123 123 Average Speed 125 | 113 120 128 130 130 124 123 123 123 123 123 123 123 123 123 Slowest Speed 350 | 120 120 350 130 130 200 185 123 123 195 123 200 170 123 123 Overloaded Moves . | . . . . . . . . . . . . . . . Propulsion Burnouts . | . . . . . . . . . . . . . . . Robots Hopped . | . . . . . . . . . . . . . . . Potential Cave-ins . | . . . . . . . . . . . . . . . Cave-ins Triggered . | . . . . . . . . . . . . . . . Exploration Rate (%) 60 | 4 97 94 99 82 47 10 95 98 59 97 15 75 16 20 Regions Visited 14 Branch Regions 8 Pre-discovered Areas 11 | . 2 1 4 . . . . 1 3 . . . . . Known Exits Taken 6 | . . . . . . . . 1 1 1 1 1 1 . Unknown Exits Taken 8 | 1 1 1 1 1 1 1 1 . . . . . . . Scrap Searched 26 | . . 10 . 6 . . 4 3 . 3 . . . . Spaces Dug 7 | . . 1 . . . . . . . . 2 3 . 1 Terrain Destroyed 435 | . 11 3 7 . 173 13 18 23 . 30 13 28 57 59 Melee . | . . . . . . . . . . . . . . . Projectile 257 | . . 3 7 . 68 13 18 23 . 30 13 28 21 33 AOE 178 | . 11 . . . 105 . . . . . . . 36 26 Terrain Rammed . | . . . . . . . . . . . . . . . Walls Destroyed . | . . . . . . . . . . . . . . . Machines Disabled . | . . . . . . . . . . . . . . . Actions | -11 -10 -10 -7 -7 -5 -4 -4 -4 -4 -3 -3 -3 -2 -1 --------- Run | Yrd Mat Sub Rec Scr Fac Fac Upp Upp Zhi Pro Res Qua Res Acc Total 17414 | 49 1062 2442 1588 1168 2570 405 1017 1994 193 1289 665 1204 610 1158 Wait 872 | . 122 85 46 8 167 6 . 21 . 47 15 197 37 121 Move 15349 | 44 844 2250 1434 1153 2080 332 972 1871 178 1179 605 962 526 919 Hop . | . . . . . . . . . . . . . . . Pick Up 15 | . 3 2 1 . 3 . 1 4 . . . . 1 . Fast Attach 76 | 5 7 3 13 3 13 2 1 6 6 . 3 4 2 8 Attach 6 | . 1 . . . 1 . 2 1 1 . . . . . Detach 11 | . . . 2 1 2 . 1 1 2 . 1 1 . . Swap 22 | . 2 1 1 1 2 . 1 6 . . . . . 8 Drop 63 | . 6 5 10 2 13 1 2 7 6 . 2 2 3 4 Fire 518 | . 46 71 27 . 148 23 13 34 . 25 22 28 31 50 Melee . | . . . . . . . . . . . . . . . Ram . | . . . . . . . . . . . . . . . Kick 37 | . 20 . 13 . 3 . . . . . . 1 . . Crush . | . . . . . . . . . . . . . . . Escape Stasis . | . . . . . . . . . . . . . . . Rewire 12 | . . . 5 . . . . . . 6 1 . . . Trap . | . . . . . . . . . . . . . . . Miscellaneous 433 | . 11 25 36 . 138 41 24 43 . 32 16 9 10 48 Route ------- -11/Scrapyard -10/Materials (discovered 6 exits: [*Mat x3] / [*Min x2] / *Sub) -10/Subcaves (discovered 3 exits: [*Mat x2] / *Rec) -7/Recycling (discovered 2 exits: *Fac / [*Scr]) -7/Scraptown (discovered 2 exits: *Fac x2) -5/Factory -4/Factory -4/Upper Caves -4/Upper Caves (discovered 2 exits: *Res / *Zhi) -4/Zhirov -3/Proximity Caves -3/Research -3/Quarantine -2/Research (discovered 3 exits: *Acc x3) -1/Access (discovered 2 exits: *Sur / Com) To Epsilon Eridani History --------- Turn | Location | Event 2 | -11/Scrapyard | Upgraded with Propulsion slot (x1) 2 | -11/Scrapyard | Upgraded with Weapon slot (x1) 25 | -11/Scrapyard | Discovered new exit (range 16) 59 | -11/Scrapyard | Entered Materials 241 | -10/Materials | Discovered new exit (range 16) 307 | -10/Materials | Build established: Mutant 406 | -10/Materials | Discovered new exit (range 10) 584 | -10/Materials | Core integrity fell below 50% 644 | -10/Materials | Discovered new exit (range 9) 823 | -10/Materials | Discovered new exit (range 11) 990 | -10/Materials | Discovered new exit (range 14) 1082 | -10/Materials | Discovered new exit (range 7) 1161 | -10/Materials | Reached level 2 1184 | -10/Materials | Upgraded with Weapon slot (x1) 1386 | -10/Materials | Entered Subcaves 1471 | -10/Subcaves | Build established: Gunner 1981 | -10/Subcaves | A swath of the cavern ceiling suddenly collapsed 2077 | -10/Subcaves | Visited 4L-MR0's lab 2097 | -10/Subcaves | Found Cargo Legs 2098 | -10/Subcaves | Attached Cargo Legs, gained temporary slots: Utility x2 2429 | -10/Subcaves | Discovered new exit (range 15) 2469 | -10/Subcaves | Ambushed by angry Subdweller bent on revenge 2590 | -10/Subcaves | Disturbed a concealed Subdweller 2596 | -10/Subcaves | Disturbed a concealed Subdweller 2852 | -10/Subcaves | Shifting Twisted Machinery released Sub. Machine Gun 2867 | -10/Subcaves | Shifting Twisted Machinery released Battle Rifle 2932 | -10/Subcaves | Discovered new exit (range 15) 3030 | -10/Subcaves | Reached level 3 3047 | -10/Subcaves | Discovered new exit (range 11) 3203 | -10/Subcaves | Shifting Twisted Machinery released Sub. Power Source 3220 | -10/Subcaves | Shifting Twisted Machinery released Multitool 3298 | -10/Subcaves | Shifting Twisted Machinery released Battle Cannon 3320 | -10/Subcaves | Shifting Twisted Machinery released Mak. System Restoration Module 3451 | -10/Subcaves | Learned location of Zion (-6) 3560 | -10/Subcaves | Disturbed a concealed Subdweller 4605 | -10/Subcaves | Entered Recycling 4607 | -7/Recycling | Reached level 4 4652 | -7/Recycling | Upgraded with Power slot (x1) 4652 | -7/Recycling | Upgraded with Utility slot (x1) 4965 | -7/Recycling | Build established: Hacker-Gunner 5458 | -7/Recycling | Discovered new exit (range 13) 6194 | -7/Recycling | Reached level 5 6277 | -7/Recycling | Upgraded with Utility slot (x1) 6660 | -7/Recycling | Scanned before Scraplab entrance 6679 | -7/Recycling | Entered Scraplab 6690 | -7/Recycling | Discovered new exit (range 4) 6695 | -7/Recycling | Entered Scraptown 7002 | -7/Scraptown | Heard Great Nut preacher, LISTEN AND RECITE! 7045 | -7/Scraptown | Discovered new exit (range 11) 7440 | -7/Scraptown | Visited UFD Registry 7440 | -7/Scraptown | Registered with UFD as "Flakeater" 7440 | -7/Scraptown | Reached level 6 7467 | -7/Scraptown | Upgraded with Propulsion slot (x1) 7550 | -7/Scraptown | Visited Junk Cannon Lab 7574 | -7/Scraptown | Visited Abandonware Association 7593 | -7/Scraptown | Visited DA-N13 Charitable Foundation 7614 | -7/Scraptown | Found DCF Scrap (30 items) 7809 | -7/Scraptown | Visited A0-MCA Data Center 7818 | -7/Scraptown | Given an A rating by A0-MCA 7979 | -7/Scraptown | Visited Scrapoid Research Area 8010 | -7/Scraptown | Visited Curators Association 8205 | -7/Scraptown | Discovered new exit (range 3) 8210 | -7/Scraptown | Entered Factory 8212 | -5/Factory | Reached level 7 8673 | -5/Factory | Garrison activated, responded to threat 9083 | -5/Factory | Reached level 8 9685 | -5/Factory | Allied Derelicts emerged from ambush trap array 9792 | -5/Factory | Reached level 9 10053 | -5/Factory | Reached level 10 10301 | -5/Factory | Discovered new exit (range 16) 10328 | -5/Factory | Upgraded with Weapon slot (x1) 10371 | -5/Factory | Loaded intel: 8 recycling unit locations 10525 | -5/Factory | Reached level 11 10534 | -5/Factory | Upgraded with Utility slot (x1) 10961 | -5/Factory | Build established: Hacker-Tank 11062 | -5/Factory | Garrison activated, responded to threat 11082 | -5/Factory | Reached level 12 11149 | -5/Factory | Destroyed 11 combat bots 11210 | -5/Factory | First assault squad dispatched 11256 | -5/Factory | Core integrity fell below 50% 11294 | -5/Factory | Build established: Hacker-Gunner 11303 | -5/Factory | Reached level 13 11314 | -5/Factory | Upgraded with Power slot (x1) 11314 | -5/Factory | Upgraded with Propulsion slot (x1) 11372 | -5/Factory | Garrison activated, responded to threat 11556 | -5/Factory | Reached level 14 11625 | -5/Factory | Reached level 15 11648 | -5/Factory | Entered another Factory area 11650 | -4/Factory | Reached level 16 12018 | -4/Factory | Spotted B-86 Titan 12022 | -4/Factory | Reached level 17 12052 | -4/Factory | Destroyed B-86 Titan 12089 | -4/Factory | Discovered new exit (range 13) 12148 | -4/Factory | First assault squad dispatched 12180 | -4/Factory | Loaded intel: 8 recycling unit locations 12190 | -4/Factory | Entered Upper Caves 12286 | -4/Upper Caves | Encountered a Warlord checkpoint 12306 | -4/Upper Caves | Upgraded with Utility slot (x1) 12321 | -4/Upper Caves | Reached level 18 12382 | -4/Upper Caves | Learned Research terminal intel 12516 | -4/Upper Caves | Upgraded with Utility slot (x1) 12594 | -4/Upper Caves | Build established: Hacker-Tank 13079 | -4/Upper Caves | Discovered new exit (range 7) 13093 | -4/Upper Caves | Attracted the attention of an 0b10 checkpoint 13463 | -4/Upper Caves | Entered another Upper Caves area 13725 | -4/Upper Caves | Spotted B-86 Titan 13735 | -4/Upper Caves | Destroyed B-86 Titan 13825 | -4/Upper Caves | Upgraded with Utility slot (x1) 14305 | -4/Upper Caves | Encountered a Warlord checkpoint 14387 | -4/Upper Caves | Found DCF Scrap (14 items) 14677 | -4/Upper Caves | Build established: Hacker-Gunner 14886 | -4/Upper Caves | Reached level 19 14961 | -4/Upper Caves | Destroyed 8 combat bots 15008 | -4/Upper Caves | Attracted the attention of an 0b10 base 15069 | -4/Upper Caves | Learned location of 1 exit from Factory 15069 | -4/Upper Caves | Learned Extension emergency access door positions 15069 | -4/Upper Caves | Learned Research stockpile data 15069 | -4/Upper Caves | Learned Extension stockpile data 15069 | -4/Upper Caves | Learned Extension security intel 15171 | -4/Upper Caves | Discovered new exit (range 15) 15354 | -4/Upper Caves | Found Alien Artifact 15355 | -4/Upper Caves | Identified Dimensional Node Initializer 15355 | -4/Upper Caves | Initialized slip node 15655 | -4/Upper Caves | Discovered new exit (range 13) 15661 | -4/Upper Caves | Attracted the attention of an 0b10 checkpoint 15718 | -4/Upper Caves | Reached level 20 15947 | -4/Upper Caves | Build established: Hacker-Tank 15968 | -4/Upper Caves | Identified exit to Zhirov 15972 | -4/Upper Caves | Entered Zhirov 15972 | -4/Zhirov | Discovered new exit (range 3) 15981 | -4/Zhirov | Identified exit to Proximity Caves 16002 | -4/Zhirov | Met Zhirov 16034 | -4/Zhirov | Learned location of Quarantine (-3) 16034 | -4/Zhirov | Learned location of Command (-1) 16048 | -4/Zhirov | Zhirov requested help retrieving the SGEMP Prototype 16073 | -4/Zhirov | Found Alien Artifact 16073 | -4/Zhirov | Identified Integrated Dissipator 16073 | -4/Zhirov | Installed Integrated Dissipator, increased core heat dissipation (+20) 16206 | -4/Zhirov | Entered Proximity Caves 16208 | -3/Proximity Caves | Reached level 21 16218 | -3/Proximity Caves | Spotted B-86 Titan 16241 | -3/Proximity Caves | Destroyed B-86 Titan 16404 | -3/Proximity Caves | Build established: Wizard-Tank 16469 | -3/Proximity Caves | Attracted the attention of an 0b10 checkpoint 17126 | -3/Proximity Caves | Discovered new exit (range 9) 17139 | -3/Proximity Caves | Identified exit to Research 17523 | -3/Proximity Caves | Attracted the attention of an 0b10 outpost 17575 | -3/Proximity Caves | Reached level 22 17829 | -3/Proximity Caves | Entered Research 17829 | -3/Research | Accompanied by 1 ally 17831 | -3/Research | Loaded intel: 21 terminal locations 17831 | -3/Research | Reached level 23 17888 | -3/Research | P-80 Master assimilated allied Champion 8a 17980 | -3/Research | Reached level 24 18670 | -3/Research | Discovered new exit (range 9) 18679 | -3/Research | Identified exit to Quarantine 18681 | -3/Research | Entered Quarantine 18683 | -3/Quarantine | Reached level 25 19214 | -3/Quarantine | Reached level 26 19940 | -3/Quarantine | Identified exit to Research 20173 | -3/Quarantine | Entered Research 20175 | -2/Research | Reached level 27 20175 | -2/Research | Reached level 28 20312 | -2/Research | Identified exit to Access 20474 | -2/Research | Core integrity fell below 50% 20479 | -2/Research | Spotted B-90 Cyclops 20511 | -2/Research | Destroyed B-90 Cyclops 20771 | -2/Research | Reached level 29 20981 | -2/Research | Entered Access 20982 | -1/Access | Core integrity fell below 50% 20983 | -1/Access | Reached level 30 21025 | -1/Access | Upgraded with Utility slot (x1) 21137 | -1/Access | Identified exit to Command 21538 | -1/Access | Reached level 31 22109 | -1/Access | Reached level 32 22275 | -1/Access | Scrapoid reinforcements arrived 22329 | -1/Access | Spotted B-99 Colossus 22338 | -1/Access | Spotted B-99 Colossus 22339 | -1/Access | Destroyed B-99 Colossus 22363 | -1/Access | Reached level 33 22363 | -1/Access | Destroyed B-99 Colossus 22392 | -1/Access | Lost 4 allies 22398 | -1/Access | Found Hvy. Insulated Plating 22464 | -1/Access | Discovered new exit (range 3) 22468 | -1/Access | Identified exit to Surface 22471 | *** | Escaped! Last Messages --------------- 22361_ 01A07-D destroyed. 22362_ K-01 Serf collects debris. 22363_ Reached level 33. 22363_ Adv. Cooling System melted. 22363_ Adv. Force Field melted. 22363_ B-99 Colossus destroyed. 22364_ 01A04-D cannibalizes Wheel to repair Ovr. Huge Scrapsphere. 22366_ Power failure, Fission Core shutdown. 22366_ K-01 Serf collects debris. 22371_ U-05 Engineer builds a Wall. 22389_ U-05 Engineer builds a Door. 22394_ Used Protomatter to restore core integrity (+240, depleted) 22395_ Dropped Lyr. Heavy Armor Plating. 22398_ Acquired Hvy. Insulated Plating. 22404_ Acquired Adv. Cooling System. 22420_ Used Protomatter to restore core integrity (+231, depleted) 22424_ Sealed Heavy Doors breached. 22464_ Main Access Shell breached. 22464_ EXIT=FOUND 22468_ EXIT=IDENTIFIED: SURFACE Map ----- +----------------------------------------------------+ | ?????????????????????????????????????????????????? | | ?????????????????????????????????????????????????? | | ?????????????????????????????????????????????????? | | ?????????????????????????????????????????????????? | | ?????????????????????????????????????????????????? | | ?????????????????????????????????????????????????? | | ?????????????????????????????????????????????????? | | ?????????????????????????????????????????????????? | | ??????????????????????????????????????????##?????# | | ??????????????????????????????????????????# ? | | ??????????????????????????????????????????# | | ??????????????????????????????????????????# | | ??????????????????????????????????????????# | | ??????????????????????????????????????????# | | ??????????????????????????????????????????# | | ??????????????????????????????????????????# | | ??????????????????????????????????????????# " | | ??????????????????????????????????????????# """ | | ??????????????????????????????????????????# """ | | ????????????????????"##########??########## " | | ????????????????????" "??"*[! ## | | ????????????????????" "?""! ! ## ! % | | ????????????????????" """""" """ =! =######### | | ????????????????????" " " [%* !!% | | ????????????????????" " "" " """" ] * ![ [=| | | ????????????????????" " @" " "??" [!!! !=|*! | | ????????????????????" " " "??"! !]! !%=![ | | ????????????????????" "" """ "??" *![ ###+##### | | ????????????????????" s "??" == # ?? | | ????????????????????" "??" # | | ????????????????????"##########??######### | | ?????????????????????????????????????????#"" | | ?????????????????????????????????????????#"" " | | ?????????????????????????????????????????#"" ! " | | ?????????????????????????????????????????#G " | | ?????????????????????????????????????????#"" " | | ??????????????????????????????????????????"" " | | ???????????????????????????????????????????" | | ??????????????????????????????????????????? | | ??????????????????????????????????????????? ] | | ???????????????????????????????????????????####### | | ?????????????????????????????????????????????????? | | ?????????????????????????????????????????????????? | | ?????????????????????????????????????????????????? | | ?????????????????????????????????????????????????? | | ?????????????????????????????????????????????????? | | ?????????????????????????????????????????????????? | | ?????????????????????????????????????????????????? | | ?????????????????????????????????????????????????? | | ?????????????????????????????????????????????????? | +----------------------------------------------------+ Best States ------------- Heat Dissipation 166 Coolant Potential 100 Energy Generation 47 Energy Capacity 735 Matter Stores 300 Matter Capacity 300 Sight Range 20 Robot Scan Range 18 Terrain Scan Density 10 Jamming Range 14 Base Temperature (-) 200 Armor Coverage 600 Resistance: KI 30 Resistance: TH 30 Resistance: EM 30 Evasion (%) 70 Particle Charging 22 Offensive Hacking 54 Defensive Hacking 25 Item Schematics ----------------- Assault Drone Bay | -4/Zhirov | Free Exp. Heat Sink | -4/Zhirov | Free Exp. Optical Array | -4/Zhirov | Free Imp. Arc Thrower | -4/Zhirov | Free Robot Schematics ------------------ None Fabricated ------------ Nothing Repaired ---------- Nothing Alien Tech Used ----------------- Dimensional Node Initializer Integrated Dissipator Achievements -------------- Prolific Hacker Challenges ------------ None RPGLIKE | -11 -10 -10 -7 -7 -5 -4 -4 -4 -4 -3 -3 -3 -2 -1 --------- Run | Yrd Mat Sub Rec Scr Fac Fac Upp Upp Zhi Pro Res Qua Res Acc Levels Raised 32 | . 1 1 2 1 9 2 1 2 . 2 2 2 3 4 XP Earned 51100 | 3000 1950 1600 3330 650 13581 3633 1600 2500 650 2550 3530 2930 3814 5782 XP Spent 47930 | 2750 1570 . 4500 1500 10635 . 3850 3100 3300 . 6250 3000 2880 4595 Upgrades 103 | 6 8 . 9 3 31 . 3 9 3 . 8 3 10 10 Power Slot 2 | . . . 1 . 1 . . . . . . . . . Propulsion Slot 3 | 1 . . . 1 1 . . . . . . . . . Utility Slot 7 | . . . 2 . 1 . 2 1 . . . . . 1 Weapon Slot 3 | 1 1 . . . 1 . . . . . . . . . Core Integrity 28 | . . . . . 13 . . . . . . . 6 9 Heat Dissipation 15 | . 7 . . . 8 . . . . . . . . . Mass Support 2 | . . . 2 . . . . . . . . . . . Inventory Capacity 1 | 1 . . . . . . . . . . . . . . Sight Range 4 | . . . . . . . . . . . 4 . . . Sensor Range 9 | . . . . . . . . 8 . . 1 . . . Ranged Accuracy 8 | 3 . . . . 2 . . . . . . 3 . . Hack Attack % 8 | . . . 4 . . . . . 2 . 2 . . . Hack Defense % 5 | . . . . 2 1 . . . 1 . 1 . . . KI Resistance % 4 | . . . . . 3 . 1 . . . . . . . TH Resistance % 4 | . . . . . . . . . . . . . 4 . Protomatter Created 4142 | . 99 229 300 . 1256 327 183 357 . 306 245 131 196 513 Integrity Restored 9339 | . 249 533 792 . 2923 920 504 918 . 634 351 168 231 1116 Core 6364 | . 249 431 235 . 2262 556 159 392 . 388 217 128 231 1116 Parts 2975 | . . 102 557 . 661 364 345 526 . 246 134 40 . . Protomatter Decayed 877 | . 16 47 32 . 198 15 . 207 . 122 48 16 . 176 Game ------ Seed MolecularScatterCompressor Manual? 0 Play Time 03:20:33 Cumulative 139.0 hours Start 2025.09.02 @ 02:58:13 End 2025.09.03 @ 02:14:03 Sessions 3 Manual Loads 0 Difficulty Rogue Special Mode Winter2019/RPGLIKE Game No. 61 Rogue 57 Adventurer 4 Explorer 0 Win Type 0 Total 2 Types 2/0/0/0/0/0/0/0/0/0 Lore% 60 Gallery% 47 Achievement% 52 Wizard Run 0 Options --------- Layout 0 ASCII 0 Keyboard 0 Movement Arrows Keybinds 0 Fullscreen 2 Font 32/SmallcapsGlow Map View 88x55 Zoom Use 0% Tactical HUD 1 Map Filters NONE Filters NONE Steam 1 RUN: 1561db95-d818-41f8-88a3-3133c47997b2